fUST/lending_fUST_20250625
["ID","MTS","AMOUNT","RATE_DAILY","PERIOD"]
[367528735,1750846239525,-381.22105681,0.00016859,2]
[367528737,1750846239536,-460.0,0.00016859,2]
[367528738,1750846239545,-460.0,0.00016859,2]
[367528740,1750846239555,-460.0,0.00016859,2]
[367528742,1750846239564,-460.0,0.00016859,2]
[367528744,1750846239575,-460.0,0.00016859,2]
[367528755,1750846239709,-460.0,0.00016859,2]
[367528756,1750846239719,-460.0,0.00016859,2]
[367528757,1750846239728,-460.0,0.00016859,2]
[367528758,1750846239737,-460.0,0.00016859,2]
[367528759,1750846239747,-460.0,0.00016859,2]
[367528760,1750846239757,-460.0,0.00016859,2]
[367528761,1750846239766,-460.0,0.00016859,2]
[367528762,1750846239775,-460.0,0.00016859,2]
[367528763,1750846239784,-460.0,0.00016859,2]
[367528764,1750846239793,-460.0,0.00016859,2]
[367528766,1750846239803,-460.0,0.00016859,2]
[367528768,1750846239812,-460.0,0.00016859,2]
[367528770,1750846239821,-260.87440124,0.00016859,2]
[367528772,1750846239830,-460.0,0.00016859,2]
[367528774,1750846239839,-460.0,0.00016859,2]
[367528776,1750846239848,-460.0,0.00016859,2]
[367528778,1750846239858,-460.0,0.00016859,2]
[367528780,1750846239867,-460.0,0.00016859,2]
[367528782,1750846239877,-460.0,0.00016859,2]
[367528784,1750846239886,-460.0,0.00016859,2]
[367528786,1750846239895,-460.0,0.00016859,2]
[367528788,1750846239904,-460.0,0.00016859,2]
[367528790,1750846239913,-460.0,0.00016859,2]
[367528792,1750846239922,-460.0,0.00016859,2]
[367528794,1750846239931,-460.0,0.00016859,2]
[367528796,1750846239940,-460.0,0.00016859,2]
[367528798,1750846239950,-460.0,0.00016859,2]
[367528800,1750846239959,-460.0,0.00016859,2]
[367528802,1750846239968,-460.0,0.00016859,2]
[367528804,1750846239977,-460.0,0.00016859,2]
[367528805,1750846239987,-460.0,0.00016859,2]
[367528807,1750846239996,-460.0,0.00016859,2]
[367528809,1750846240005,-460.0,0.00016859,2]
[367528811,1750846240015,-460.0,0.00016859,2]
[367528813,1750846240024,-540.02,0.00016859,2]
[367528816,1750846240034,-550.19,0.00016859,2]
[367528817,1750846240043,-460.0,0.00016859,2]
[367528820,1750846240052,-460.0,0.00016859,2]
[367528822,1750846240062,-460.0,0.00016859,2]
[367528824,1750846240071,-460.0,0.00016859,2]
[367528826,1750846240081,-460.0,0.00016859,2]
[367528828,1750846240094,-460.0,0.00016859,2]
[367528830,1750846240104,-460.0,0.00016859,2]
[367528832,1750846240113,-460.0,0.00016859,2]
[367528834,1750846240123,-460.0,0.00016859,2]
[367528836,1750846240132,-551.72,0.00016859,2]
[367528838,1750846240143,-460.0,0.00016859,2]
[367528840,1750846240152,-597.1990141,0.00016859,2]
[367528842,1750846240161,-461.45320745,0.00016859,2]
[367528844,1750846240171,-460.0,0.00016859,2]
[367528846,1750846240180,-460.0,0.00016859,2]
[367528848,1750846240189,-460.0,0.00016859,2]
[367528850,1750846240199,-460.0,0.00016859,2]
[367528852,1750846240208,-460.0,0.00016859,2]
[367528854,1750846240217,-460.0,0.00016859,2]
[367528856,1750846240226,-460.0,0.00016859,2]
[367528858,1750846240235,-500.0,0.00016859,2]
[367528860,1750846240244,-460.0,0.00016859,2]
[367528862,1750846240254,-460.0,0.00016859,2]
[367528864,1750846240263,-460.0,0.00016859,2]
[367528866,1750846240272,-460.0,0.00016859,2]
[367528868,1750846240282,-460.0,0.00016859,2]
[367528870,1750846240291,-460.0,0.00016859,2]
[367528872,1750846240300,-460.0,0.00016859,2]
[367528874,1750846240309,-460.0,0.00016859,2]
[367528876,1750846240318,-460.0,0.00016859,2]
[367528878,1750846240328,-460.0,0.00016859,2]
[367528880,1750846240338,-460.0,0.00016859,2]
[367528882,1750846240347,-460.0,0.00016859,2]
[367528884,1750846240357,-460.0,0.00016859,2]
[367528886,1750846240367,-460.0,0.00016859,2]
[367528888,1750846240376,-460.0,0.00016859,2]
[367528890,1750846240385,-367.39725797,0.00016859,2]
[367528892,1750846240394,-510.52,0.00016859,2]
[367528895,1750846240403,-460.26107612,0.00016859,2]
[367528898,1750846240413,-460.0,0.00016859,2]
[367528901,1750846240424,-242.23262527,0.00016859,2]
[367528903,1750846240433,-460.0,0.00016859,2]
[367528905,1750846240443,-460.0,0.00016859,2]
[367528907,1750846240453,-460.0,0.00016859,2]
[367528909,1750846240462,-460.0,0.00016859,2]
[367528911,1750846240471,-366.2124688,0.00016859,2]
[367528913,1750846240480,-460.0,0.00016859,2]
[367528915,1750846240489,-460.0,0.00016859,2]
[367528917,1750846240499,-525.16,0.00016859,2]
[367528919,1750846240508,-2068.62196642,0.00016859,2]
[367528921,1750846240518,-460.0,0.00016859,2]
[367528923,1750846240531,-460.0,0.00016859,2]
[367528925,1750846240541,-460.0,0.00016859,2]
[367528927,1750846240550,-460.0,0.00016859,2]
[367528929,1750846240559,-200.6829003,0.00016859,2]
[367528931,1750846240570,-460.0,0.00016859,2]
[367528933,1750846240579,-460.0,0.00016859,2]
[367528935,1750846240589,-460.0,0.00016859,2]
[367528936,1750846240599,-460.0,0.00016859,2]
[367528938,1750846240610,-460.0,0.00016859,2]
[367528939,1750846240620,-460.0,0.00016859,2]
[367528941,1750846240629,-380.30835185,0.00016859,2]
[367528942,1750846240639,-460.0,0.00016859,2]
[367528944,1750846240648,-460.0,0.0001686,2]
[367528945,1750846240657,-467.77977792,0.0001686,2]
[367528947,1750846240668,-460.0,0.0001686,2]
[367528949,1750846240677,-460.0,0.0001686,2]
[367528950,1750846240687,-460.0,0.0001686,2]
[367528952,1750846240698,-460.0,0.0001686,2]
[367528953,1750846240708,-460.0,0.0001686,2]
[367528955,1750846240718,-460.0,0.0001686,2]
[367528956,1750846240727,-460.0,0.0001686,2]
[367528958,1750846240737,-582.3,0.0001686,2]
[367528959,1750846240746,-460.0,0.0001686,2]
[367528961,1750846240755,-460.0,0.0001686,2]
[367528962,1750846240765,-460.0,0.0001686,2]
[367528964,1750846240775,-460.0,0.0001686,2]
[367528965,1750846240784,-460.0,0.0001686,2]
[367528967,1750846240793,-460.0,0.0001686,2]
[367528968,1750846240802,-460.0,0.0001686,2]
[367528970,1750846240812,-460.0,0.0001686,2]
[367528972,1750846240821,-460.0,0.0001686,2]
[367528973,1750846240831,-460.0,0.0001686,2]
[367528975,1750846240842,-460.0,0.0001686,2]
[367528977,1750846240852,-460.0,0.0001686,2]
[367528978,1750846240861,-460.0,0.0001686,2]
[367528980,1750846240870,-460.0,0.0001686,2]
[367528982,1750846240880,-460.0,0.0001686,2]
[367528983,1750846240890,-460.0,0.0001686,2]
[367528985,1750846240899,-460.0,0.0001686,2]
[367528986,1750846240908,-460.0,0.0001686,2]
[367528988,1750846240917,-533.17,0.00017072,2]
[367528989,1750846240927,-460.0,0.00017072,2]
[367528991,1750846240936,-969.55,0.00017072,2]
[367528993,1750846240945,-460.0,0.00017072,2]
[367528994,1750846240954,-460.0,0.00017072,2]
[367528996,1750846240963,-390.7014776,0.00017073,2]
[367528998,1750846240972,-460.0,0.00017073,2]
[367528999,1750846240982,-327.12,0.00017073,2]
[367529001,1750846240992,-460.0,0.00017073,2]
[367529003,1750846241001,-1518.23,0.00017073,2]
[367529004,1750846241010,-1736.35,0.00017073,2]
[367529006,1750846241019,-460.0,0.00017073,2]
[367529008,1750846241028,-460.0,0.00017073,2]
[367529009,1750846241038,-460.0,0.00017073,2]
[367529011,1750846241047,-460.0,0.00017073,2]
[367529012,1750846241057,-1713.32,0.00017073,2]
[367529014,1750846241066,-645.32,0.00017073,2]
[367529016,1750846241075,-1431.6,0.00017073,2]
[367529017,1750846241084,-568.1,0.00017073,2]
[367529019,1750846241093,-460.0,0.00017073,2]
[367529020,1750846241103,-414.26,0.00017073,2]
[367529022,1750846241112,-460.0,0.00017073,2]
[367529024,1750846241121,-460.0,0.00017073,2]
[367529025,1750846241130,-460.0,0.00017073,2]
[367529027,1750846241140,-460.0,0.00017073,2]
[367529029,1750846241149,-539.8,0.00017073,2]
[367529030,1750846241158,-460.0,0.00017073,2]
[367529032,1750846241168,-460.0,0.00017073,2]
[367529034,1750846241177,-460.0,0.00017073,2]
[367529035,1750846241186,-460.0,0.00017073,2]
[367529037,1750846241195,-151.0,0.000171,2]
[367529039,1750846241205,-460.0,0.00017132,2]
[367529040,1750846241214,-534.44572648,0.00017132,2]
[367529042,1750846241223,-460.0,0.00017132,2]
[367529044,1750846241234,-460.0,0.00017132,2]
[367529045,1750846241243,-460.0,0.00017132,2]
[367529047,1750846241253,-460.0,0.00017132,2]
[367529049,1750846241262,-460.0,0.00017132,2]
[367529050,1750846241271,-460.0,0.00017132,2]
[367529052,1750846241280,-460.0,0.00017132,2]
[367529053,1750846241289,-460.0,0.00017132,2]
[367529055,1750846241299,-460.0,0.00017132,2]
[367529057,1750846241309,-460.0,0.00017132,2]
[367529058,1750846241319,-209.43,0.00017132,2]
[367529060,1750846241328,-460.0,0.00017132,2]
[367529062,1750846241338,-325.978339,0.00017132,2]
[367529063,1750846241347,-460.0,0.00017132,2]
[367529065,1750846241357,-460.0,0.00017132,2]
[367529066,1750846241366,-460.0,0.00017132,2]
[367529068,1750846241375,-460.0,0.00017132,2]
[367529070,1750846241384,-460.0,0.00017132,2]
[367529071,1750846241394,-460.0,0.00017132,2]
[367529073,1750846241403,-460.0,0.00017132,2]
[367529075,1750846241413,-3532.78,0.00017132,2]
[367529076,1750846241422,-460.0,0.00017132,2]
[367529078,1750846241438,-460.0,0.00017132,2]
[367529080,1750846241452,-460.0,0.00017132,2]
[367529082,1750846241462,-454.69,0.00017132,2]
[367529084,1750846241473,-460.0,0.00017132,2]
[367529085,1750846241483,-460.0,0.00017132,2]
[367529087,1750846241492,-460.0,0.00017132,2]
[367529089,1750846241502,-460.0,0.00017132,2]
[367529090,1750846241511,-460.0,0.00017132,2]
[367529092,1750846241521,-460.0,0.00017132,2]
[367529094,1750846241535,-462.95564941,0.00017132,2]
[367529095,1750846241544,-460.0,0.00017132,2]
[367529097,1750846241554,-536.12,0.00017132,2]
[367529099,1750846241563,-460.0,0.00017132,2]
[367529100,1750846241573,-460.0,0.00017132,2]
[367529102,1750846241583,-460.0,0.00017132,2]
[367529104,1750846241593,-460.0,0.00017132,2]
[367529105,1750846241603,-461.55380203,0.00017132,2]
[367529107,1750846241612,-460.0,0.00017132,2]
[367529108,1750846241621,-645.59,0.00017132,2]
[367529110,1750846241631,-460.0,0.00017132,2]
[367529112,1750846241640,-370.0,0.00017132,2]
[367529113,1750846241649,-460.0,0.00017132,2]
[367529115,1750846241659,-395.59,0.00017132,2]
[367529117,1750846241668,-460.0,0.00017132,2]
[367529118,1750846241678,-460.0,0.00017132,2]
[367529120,1750846241687,-501.71,0.00017132,2]
[367529122,1750846241697,-284.26567815,0.00017132,2]
[367529124,1750846241710,-327.25,0.00017133,2]
[367529125,1750846241719,-460.0,0.00017133,2]
[367529127,1750846241730,-558.7,0.00017133,2]
[367529129,1750846241740,-255.6,0.00017133,2]
[367529130,1750846241749,-299.23,0.00017133,2]
[367529132,1750846241759,-335.39,0.00017133,2]
[367529134,1750846241768,-460.0,0.00017133,2]
[367529135,1750846241777,-225.84,0.00017133,2]
[367529137,1750846241787,-551.72,0.00017133,2]
[367529139,1750846241796,-460.0,0.00017133,2]
[367529140,1750846241805,-305.69,0.00017133,2]
[367529142,1750846241815,-460.0,0.00017133,2]
[367529144,1750846241824,-472.75,0.00017133,2]
[367529145,1750846241834,-268.56,0.00017133,2]
[367529147,1750846241843,-460.0,0.00017133,2]
[367529149,1750846241853,-460.0,0.00017133,2]
[367529151,1750846241863,-269.04,0.00017134,2]
[367529153,1750846241873,-167.63,0.00017134,2]
[367529154,1750846241882,-341.56,0.00017134,2]
[367529155,1750846241892,-460.0,0.00017134,2]
[367529156,1750846241902,-460.0,0.00017134,2]
[367529157,1750846241911,-233.86303067,0.00017134,2]
[367529158,1750846241920,-220.63,0.00017134,2]
[367529159,1750846241930,-460.0,0.00017134,2]
[367529160,1750846241939,-500.0,0.00017246,2]
[367529161,1750846241949,-500.0,0.00017246,2]
[367529162,1750846241958,-500.0,0.00017271,2]
[367529163,1750846241968,-1336.21766961,0.00017328,2]
[367529164,1750846241977,-969.55,0.00017346,2]
[367529165,1750846241987,-371.01,0.00017346,2]
[367529166,1750846241996,-460.0,0.00017347,2]
[367529167,1750846242006,-460.0,0.00017347,2]
[367529168,1750846242015,-1518.23,0.00017347,2]
[367529169,1750846242025,-1736.35,0.00017347,2]
[367529170,1750846242034,-460.0,0.00017347,2]
[367529171,1750846242043,-536.04,0.00017347,2]
[367529175,1750846242132,-460.0,0.00017347,2]
[367529177,1750846242141,-1713.32,0.00017347,2]
[367529179,1750846242150,-645.32,0.00017347,2]
[367529181,1750846242159,-1431.6,0.00017347,2]
[367529183,1750846242169,-460.0,0.00017347,2]
[367529185,1750846242178,-460.0,0.00017347,2]
[367529187,1750846242187,-460.0,0.00017347,2]
[367529189,1750846242196,-460.0,0.00017347,2]
[367529191,1750846242205,-460.0,0.00017347,2]
[367529193,1750846242214,-539.8,0.00017347,2]
[367529195,1750846242223,-460.0,0.00017347,2]
[367529197,1750846242232,-460.0,0.00017347,2]
[367529199,1750846242241,-460.0,0.00017347,2]
[367529201,1750846242250,-460.0,0.00017347,2]
[367529203,1750846242259,-500.0,0.00017385,2]
[367529205,1750846242268,-500.0,0.00017385,2]
[367529207,1750846242277,-223.05869188,0.00017396,2]
[367529209,1750846242286,-302.99578303,0.00017396,2]
[367529211,1750846242295,-571.91904621,0.00017396,2]
[367529213,1750846242305,-151.0,0.000174,2]
[367529215,1750846242314,-500.0,0.00017403,2]
[367529217,1750846242323,-500.0,0.00017403,2]
[367529219,1750846242332,-500.0,0.00017406,2]
[367529221,1750846242343,-253.33,0.00017406,2]
[367529223,1750846242352,-460.0,0.00017406,2]
[367529225,1750846242362,-350.56646888,0.00017406,2]
[367529227,1750846242372,-460.0,0.00017406,2]
[367529229,1750846242381,-192.91,0.00017406,2]
[367529231,1750846242390,-262.9488836,0.00017406,2]
[367529233,1750846242399,-460.0,0.00017406,2]
[367529235,1750846242409,-274.57,0.00017406,2]
[367529237,1750846242418,-340.12,0.00017406,2]
[367529239,1750846242427,-201.42,0.00017406,2]
[367529241,1750846242436,-460.0,0.00017406,2]
[367529243,1750846242445,-282.07,0.00017406,2]
[367529244,1750846242455,-460.0,0.00017406,2]
[367529247,1750846242466,-389.36,0.00017406,2]
[367529248,1750846242475,-460.0,0.00017406,2]
[367529251,1750846242486,-3532.78,0.00017406,2]
[367529253,1750846242495,-460.0,0.00017406,2]
[367529255,1750846242504,-460.0,0.00017406,2]
[367529259,1750846242514,-460.0,0.00017406,2]
[367529262,1750846242525,-460.0,0.00017406,2]
[367529265,1750846242535,-460.0,0.00017406,2]
[367529267,1750846242546,-460.0,0.00017406,2]
[367529269,1750846242555,-460.0,0.00017406,2]
[367529271,1750846242564,-460.0,0.00017406,2]
[367529273,1750846242573,-460.0,0.00017406,2]
[367529275,1750846242582,-460.0,0.00017406,2]
[367529277,1750846242592,-460.0,0.00017406,2]
[367529279,1750846242604,-436.28,0.00017406,2]
[367529281,1750846242613,-645.59,0.00017406,2]
[367529283,1750846242622,-460.0,0.00017406,2]
[367529285,1750846242632,-460.0,0.00017406,2]
[367529287,1750846242640,-460.0,0.00017406,2]
[367529288,1750846242650,-460.0,0.00017406,2]
[367529290,1750846242660,-500.0,0.00017406,2]
[367529293,1750846242669,-500.0,0.00017406,2]
[367529294,1750846242678,-502.51720373,0.00017406,2]
[367529296,1750846242687,-531.71,0.00017407,2]
[367529298,1750846242696,-460.0,0.00017407,2]
[367529300,1750846242706,-551.72,0.00017407,2]
[367529302,1750846242715,-586.16,0.00017407,2]
[367529304,1750846242724,-460.0,0.00017407,2]
[367529306,1750846242733,-460.0,0.00017407,2]
[367529308,1750846242742,-325.55,0.00017407,2]
[367529311,1750846242752,-392.35,0.00017408,2]
[367529313,1750846242762,-175.63,0.00017408,2]
[367529315,1750846242772,-543.45,0.00017408,2]
[367529316,1750846242782,-500.0,0.00017433,2]
[367529319,1750846242794,-500.0,0.00017433,2]
[367529320,1750846242804,-500.4149829,0.00017433,2]
[367529323,1750846242815,-627.1042849,0.00017433,2]
[367529325,1750846242825,-969.55,0.0001762,2]
[367529326,1750846242835,-460.0,0.00017621,2]
[367529328,1750846242844,-460.0,0.00017621,2]
[367529330,1750846242854,-1518.23,0.00017621,2]
[367529333,1750846242865,-1736.35,0.00017621,2]
[367529334,1750846242875,-460.0,0.00017621,2]
[367529336,1750846242884,-460.0,0.00017621,2]
[367529338,1750846242893,-1713.32,0.00017621,2]
[367529341,1750846242903,-645.32,0.00017621,2]
[367529343,1750846242913,-1431.6,0.00017621,2]
[367529345,1750846242922,-460.0,0.00017621,2]
[367529346,1750846242931,-460.0,0.00017621,2]
[367529348,1750846242940,-460.0,0.00017621,2]
[367529351,1750846242949,-460.0,0.00017621,2]
[367529353,1750846242958,-460.0,0.00017621,2]
[367529354,1750846242967,-539.8,0.00017621,2]
[367529356,1750846242977,-298.1,0.00017621,2]
[367529358,1750846242986,-460.0,0.00017621,2]
[367529360,1750846242995,-460.0,0.00017621,2]
[367529362,1750846243004,-460.0,0.00017621,2]
[367529364,1750846243013,-540.73312332,0.00017638,2]
[367529367,1750846243022,-460.0,0.0001768,2]
[367529370,1750846243031,-460.0,0.0001768,2]
[367529373,1750846243040,-460.0,0.0001768,2]
[367529376,1750846243049,-460.0,0.0001768,2]
[367529378,1750846243058,-460.0,0.0001768,2]
[367529380,1750846243067,-460.0,0.0001768,2]
[367529382,1750846243075,-3532.78,0.0001768,2]
[367529384,1750846243084,-459.9,0.0001768,2]
[367529386,1750846243094,-460.0,0.0001768,2]
[367529388,1750846243103,-460.0,0.0001768,2]
[367529390,1750846243112,-460.0,0.0001768,2]
[367529392,1750846243122,-460.0,0.0001768,2]
[367529394,1750846243132,-460.0,0.0001768,2]
[367529397,1750846243142,-190.66545844,0.0001768,2]
[367529399,1750846243151,-460.0,0.0001768,2]
[367529401,1750846243161,-460.0,0.0001768,2]
[367529403,1750846243170,-460.0,0.0001768,2]
[367529405,1750846243180,-509.7,0.0001768,2]
[367529407,1750846243189,-645.59,0.0001768,2]
[367529409,1750846243199,-460.0,0.0001768,2]
[367529411,1750846243208,-460.0,0.0001768,2]
[367529413,1750846243217,-460.0,0.0001768,2]
[367529415,1750846243226,-291.12,0.0001768,2]
[367529417,1750846243235,-265.52,0.00017681,2]
[367529419,1750846243245,-551.72,0.00017681,2]
[367529421,1750846243254,-380.33,0.00017681,2]
[367529423,1750846243263,-460.0,0.00017681,2]
[367529425,1750846243272,-151.0,0.000177,2]
[367529427,1750846243282,-12786.84320961,0.000177,2]
[367529429,1750846243291,-12786.84320933,0.000177,2]
[367529431,1750846243301,-12786.84320933,0.000177,2]
[367529433,1750846243310,-12786.84320933,0.00017728,2]
[367529435,1750846243319,-1000.0,0.00017819,2]
[367529437,1750846243329,-198.0,0.00017862,2]
[367529439,1750846243339,-198.0,0.00017862,2]
[367529441,1750846243349,-969.55,0.00017894,2]
[367529443,1750846243358,-460.0,0.00017895,2]
[367529445,1750846243368,-460.0,0.00017895,2]
[367529447,1750846243377,-1518.23,0.00017895,2]
[367529449,1750846243387,-1736.35,0.00017895,2]
[367529452,1750846243405,-569.56,0.00017895,2]
[367529454,1750846243417,-184.76,0.00017895,2]
[367529456,1750846243427,-1713.32,0.00017895,2]
[367529458,1750846243436,-645.32,0.00017895,2]
[367529461,1750846243447,-1431.6,0.00017895,2]
[367529463,1750846243456,-460.0,0.00017895,2]
[367529465,1750846243466,-460.0,0.00017895,2]
[367529467,1750846243476,-460.0,0.00017895,2]
[367529469,1750846243486,-460.0,0.00017895,2]
[367529471,1750846243496,-502.34,0.00017895,2]
[367529473,1750846243505,-539.8,0.00017895,2]
[367529475,1750846243515,-460.0,0.00017895,2]
[367529477,1750846243527,-460.0,0.00017895,2]
[367529479,1750846243539,-460.0,0.00017895,2]
[367529481,1750846243550,-1336.21766961,0.00017897,2]
[367529483,1750846243560,-160.0,0.0001793,2]
[367529485,1750846243570,-524.21181985,0.0001793,2]
[367529487,1750846243580,-836.86812089,0.0001793,2]
[367529489,1750846243590,-160.0,0.0001793,2]
[367529491,1750846243600,-230.22714675,0.0001793,2]
[367529493,1750846243610,-160.0,0.0001793,2]
[367529495,1750846243619,-846.80634355,0.0001793,2]
[367529497,1750846243629,-213.69531788,0.0001793,2]
[367529499,1750846243639,-12558.06783089,0.0001793,2]
[367529501,1750846243650,-425.18553072,0.0001793,2]
[367529503,1750846243660,-160.0,0.00017931,2]
[367529505,1750846243670,-160.0,0.00017931,2]
[367529507,1750846243680,-160.0,0.00017931,2]
[367529509,1750846243691,-160.0,0.00017931,2]
[367529512,1750846243701,-160.0,0.00017931,2]
[367529514,1750846243710,-500.0,0.00017933,2]
[367529516,1750846243720,-1000.0,0.00017933,2]
[367529518,1750846243730,-1000.0,0.00017951,2]
[367529520,1750846243740,-1000.0,0.00017951,2]
[367529522,1750846243749,-1000.0,0.00017954,2]
[367529524,1750846243759,-417.50847305,0.00017954,2]
[367529526,1750846243768,-419.86762668,0.00017954,2]
[367529528,1750846243778,-593.82,0.00017954,2]
[367529530,1750846243787,-460.0,0.00017954,2]
[367529532,1750846243797,-460.0,0.00017954,2]
[367529534,1750846243807,-460.0,0.00017954,2]
[367529536,1750846243817,-3532.78,0.00017954,2]
[367529538,1750846243827,-460.0,0.00017954,2]
[367529540,1750846243836,-460.0,0.00017954,2]
[367529542,1750846243846,-460.0,0.00017954,2]
[367529544,1750846243856,-460.0,0.00017954,2]
[367529546,1750846243865,-460.0,0.00017954,2]
[367529548,1750846243875,-460.0,0.00017954,2]
[367529550,1750846243885,-460.0,0.00017954,2]
[367529552,1750846243895,-460.0,0.00017954,2]
[367529554,1750846243904,-645.59,0.00017954,2]
[367529556,1750846243914,-550.48340987,0.00017954,2]
[367529558,1750846243923,-460.0,0.00017954,2]
[367529560,1750846243933,-460.0,0.00017954,2]
[367529563,1750846243943,-1000.0,0.00017954,2]
[367529565,1750846243953,-1000.0,0.00017954,2]
[367529567,1750846243962,-551.72,0.00017955,2]
[367529569,1750846243972,-460.0,0.00017955,2]
[367529571,1750846243982,-500.0,0.00017971,2]
[367529573,1750846243991,-151.0,0.00017971,2]
[367529575,1750846244001,-1000.0,0.00017981,2]
[367529577,1750846244011,-1000.0,0.00017981,2]
[367529579,1750846244021,-500.0,0.00017998,2]
[367529581,1750846244031,-151.0,0.00018,2]
[367529583,1750846244040,-12786.84320933,0.00018003,2]
[367529585,1750846244049,-500.0,0.00018026,2]
[367529587,1750846244059,-500.0,0.00018053,2]
[367529589,1750846244068,-500.0,0.00018068,2]
[367529591,1750846244078,-500.0,0.00018081,2]
[367529593,1750846244087,-2299.0159498,0.00018082,2]
[367529595,1750846244097,-500.0,0.00018108,2]
[367529597,1750846244106,-340.0,0.00018135,2]
[367529599,1750846244116,-969.55,0.00018168,2]
[367529601,1750846244127,-460.0,0.00018169,2]
[367529603,1750846244136,-460.0,0.00018169,2]
[367529605,1750846244146,-1518.23,0.00018169,2]
[367529607,1750846244155,-1736.35,0.00018169,2]
[367529609,1750846244165,-1713.32,0.00018169,2]
[367529611,1750846244175,-645.32,0.00018169,2]
[367529613,1750846244185,-1431.6,0.00018169,2]
[367529616,1750846244195,-460.0,0.00018169,2]
[367529641,1750846244416,-460.0,0.00018169,2]
[367529643,1750846244426,-200.89,0.00018169,2]
[367529645,1750846244436,-539.8,0.00018169,2]
[367529647,1750846244445,-460.0,0.00018169,2]
[367529649,1750846244455,-305.76,0.00018169,2]
[367529651,1750846244464,-460.0,0.00018169,2]
[367529653,1750846244474,-151.323677,0.0001817,2]
[367529655,1750846244483,-151.0,0.0001817,2]
[367529657,1750846244493,-151.0,0.0001817,2]
[367529659,1750846244503,-151.575806,0.0001817,2]
[367529661,1750846244513,-151.0,0.0001817,2]
[367529663,1750846244524,-151.0,0.0001817,2]
[367529665,1750846244539,-151.0,0.0001817,2]
[367529667,1750846244549,-151.0,0.0001817,2]
[367529669,1750846244559,-288.89272804,0.0001817,2]
[367529671,1750846244569,-151.0,0.0001817,2]
[367529673,1750846244579,-1688.0,0.0001817,2]
[367529675,1750846244588,-151.0,0.0001817,2]
[367529677,1750846244599,-500.0,0.0001817,2]
[367529679,1750846244608,-151.0,0.0001817,2]
[367529681,1750846244618,-227.54651037,0.0001817,2]
[367529683,1750846244627,-500.0,0.0001817,2]
[367529685,1750846244637,-500.0,0.0001817,2]
[367529687,1750846244646,-500.0,0.0001817,2]
[367529689,1750846244656,-5000.0,0.0001817,2]
[367529690,1750846244665,-500.0,0.0001817,2]
[367529691,1750846244678,-500.0,0.0001817,2]
[367529692,1750846244688,-500.0,0.0001817,2]
[367529693,1750846244698,-500.0,0.0001817,2]
[367529694,1750846244707,-500.0,0.0001817,2]
[367529695,1750846244717,-500.0,0.0001817,2]
[367529696,1750846244727,-207.4,0.0001817,2]
[367529697,1750846244736,-500.0,0.0001817,2]
[367529698,1750846244746,-500.0,0.0001817,2]